[Event "*** Titled Tuesday Blitz"]
[Site "Chess.com"]
[Date "2018.07.03"]
[Round "5"]
[White "Irochka83"]
[Black "NemtsevIgor"]
[Result "0-1"]
[WhiteElo "2248"]
[BlackElo "2409"]
[TimeControl "180+2"]
[EndTime "14:04:55 PDT"]
[Termination "NemtsevIgor won by resignation"]

1. d4 {[%clk 0:03:01.9]} 1... c6 {[%clk 0:03:00]} 2. c4 {[%clk 0:03:01.8]} 2...
d6 {[%clk 0:03:01]} 3. e4 {[%clk 0:02:58.8]} 3... Nd7 {[%clk 0:03:02]} 4. Nc3
{[%clk 0:02:59.3]} 4... h6 {[%clk 0:03:02.7]} 5. f4 {[%clk 0:02:52.7]} 5... g5
{[%clk 0:03:03.8]} 6. fxg5 {[%clk 0:02:48.4]} 6... hxg5 {[%clk 0:03:05]} 7. Bxg5
{[%clk 0:02:49.8]} 7... Bg7 {[%clk 0:03:04.5]} 8. Nf3 {[%clk 0:02:49.9]} 8...
Nf8 {[%clk 0:03:04.3]} 9. Qd2 {[%clk 0:02:40.1]} 9... Ne6 {[%clk 0:03:04.5]} 10.
Be3 {[%clk 0:02:40.1]} 10... Nh6 {[%clk 0:03:03.6]} 11. d5 {[%clk 0:02:30.6]}
11... Nf8 {[%clk 0:02:58.9]} 12. Bd4 {[%clk 0:02:28.4]} 12... Bxd4 {[%clk
0:02:56.6]} 13. Qxd4 {[%clk 0:02:24.1]} 13... f6 {[%clk 0:02:57.5]} 14. Be2
{[%clk 0:02:13.2]} 14... Ng4 {[%clk 0:02:50.3]} 15. O-O-O {[%clk 0:02:04.4]}
15... Ng6 {[%clk 0:02:48.7]} 16. dxc6 {[%clk 0:01:54.8]} 16... bxc6 {[%clk
0:02:46.8]} 17. c5 {[%clk 0:01:56]} 17... Bd7 {[%clk 0:01:33.9]} 18. cxd6 {[%clk
0:01:54.1]} 18... e5 {[%clk 0:01:35]} 19. Qc5 {[%clk 0:01:45.8]} 19... Nf4
{[%clk 0:01:29.8]} 20. Bc4 {[%clk 0:01:34.2]} 20... Qb6 {[%clk 0:01:22.7]} 21.
Qxb6 {[%clk 0:01:03.9]} 21... axb6 {[%clk 0:01:23.2]} 22. Rd2 {[%clk 0:01:05.4]}
22... b5 {[%clk 0:01:21]} 23. Bb3 {[%clk 0:01:02.4]} 23... Ne3 {[%clk
0:00:50.2]} 24. g3 {[%clk 0:01:03.1]} 24... Nh5 {[%clk 0:00:45.6]} 25. Re1
{[%clk 0:01:02.4]} 25... Nc4 {[%clk 0:00:39.4]} 26. Bxc4 {[%clk 0:01:03.1]}
26... bxc4 {[%clk 0:00:41.3]} 27. Rf2 {[%clk 0:00:58.3]} 27... Ng7 {[%clk
0:00:38.3]} 28. Nh4 {[%clk 0:00:55.8]} 28... Rh6 {[%clk 0:00:36.7]} 29. Ref1
{[%clk 0:00:50.4]} 29... Nh5 {[%clk 0:00:33.4]} 30. Ng2 {[%clk 0:00:38]} 30...
Bh3 {[%clk 0:00:33.4]} 31. Rd1 {[%clk 0:00:37.7]} 31... Bxg2 {[%clk 0:00:30.4]}
32. Rxg2 {[%clk 0:00:39.6]} 32... Ng7 {[%clk 0:00:32.1]} 33. Rc2 {[%clk
0:00:37.3]} 33... Ne6 {[%clk 0:00:32.3]} 34. Rf2 {[%clk 0:00:27.3]} 34... Nc5
{[%clk 0:00:28.9]} 35. Kc2 {[%clk 0:00:26.2]} 35... Kd7 {[%clk 0:00:26.2]} 36.
Rdf1 {[%clk 0:00:23.9]} 36... Rf8 {[%clk 0:00:22.5]} 37. b4 {[%clk 0:00:20.4]}
37... cxb3+ {[%clk 0:00:22.8]} 38. axb3 {[%clk 0:00:21.3]} 38... Kxd6 {[%clk
0:00:24.2]} 39. b4 {[%clk 0:00:21]} 39... Ne6 {[%clk 0:00:24.8]} 40. Kb2 {[%clk
0:00:19.2]} 40... Nd4 {[%clk 0:00:25.8]} 41. Ne2 {[%clk 0:00:19.9]} 41... Ke6
{[%clk 0:00:22.3]} 42. Nxd4+ {[%clk 0:00:18.3]} 42... exd4 {[%clk 0:00:24.2]}
43. Rd1 {[%clk 0:00:19.3]} 43... Rd8 {[%clk 0:00:24.5]} 44. Kb3 {[%clk
0:00:19.3]} 44... Ke5 {[%clk 0:00:24.2]} 45. Re2 {[%clk 0:00:20]} 45... Rg6
{[%clk 0:00:22.5]} 46. Kc4 {[%clk 0:00:19.6]} 46... Rg4 {[%clk 0:00:23.7]} 47.
Rf1 {[%clk 0:00:17.3]} 47... d3 {[%clk 0:00:21.8]} 48. Re3 {[%clk 0:00:17.3]}
48... Rxe4+ {[%clk 0:00:21.1]} 49. Rxe4+ {[%clk 0:00:16.5]} 49... Kxe4 {[%clk
0:00:23]} 50. Re1+ {[%clk 0:00:17.4]} 50... Kf3 {[%clk 0:00:23.1]} 51. Kc3
{[%clk 0:00:16.9]} 51... d2 {[%clk 0:00:23.7]} 52. Rd1 {[%clk 0:00:18.1]} 52...
Ke2 {[%clk 0:00:24.8]} 53. Kc2 {[%clk 0:00:18.4]} 53... Rd4 {[%clk 0:00:25.3]}
54. h4 {[%clk 0:00:04.9]} 54... Rc4+ {[%clk 0:00:25.8]} 55. Kb3 {[%clk
0:00:06.5]} 55... Kxd1 {[%clk 0:00:26.5]} 56. Kxc4 {[%clk 0:00:07.9]} 56... Kc2
{[%clk 0:00:27]} 0-1

[Event "*** Titled Tuesday Blitz"]
[Site "Chess.com"]
[Date "2018.07.03"]
[Round "5"]
[White "jeetjain"]
[Black "gmjlh"]
[Result "0-1"]
[WhiteElo "2438"]
[BlackElo "2660"]
[TimeControl "180+2"]
[EndTime "14:04:56 PDT"]
[Termination "gmjlh won by resignation"]

1. e4 {[%clk 0:03:01.9]} 1... c6 {[%clk 0:02:59.9]} 2. d4 {[%clk 0:03:02.8]}
2... d5 {[%clk 0:03:00.6]} 3. e5 {[%clk 0:03:04.1]} 3... Bf5 {[%clk 0:03:00.1]}
4. h4 {[%clk 0:03:04.8]} 4... h5 {[%clk 0:02:59.7]} 5. Bd3 {[%clk 0:03:05.4]}
5... Bxd3 {[%clk 0:02:57.4]} 6. Qxd3 {[%clk 0:03:07.3]} 6... e6 {[%clk
0:02:55.8]} 7. Bg5 {[%clk 0:03:08.2]} 7... Qb6 {[%clk 0:02:47.7]} 8. Nd2 {[%clk
0:03:07.7]} 8... c5 {[%clk 0:02:31]} 9. c4 {[%clk 0:03:08.2]} 9... Qxb2 {[%clk
0:02:31.2]} 10. Rd1 {[%clk 0:03:08.3]} 10... Nc6 {[%clk 0:02:16.2]} 11. cxd5
{[%clk 0:02:17.4]} 11... Nxd4 {[%clk 0:02:06]} 12. dxe6 {[%clk 0:02:01.8]} 12...
Nxe6 {[%clk 0:01:17.8]} 13. Ngf3 {[%clk 0:02:01.4]} 13... Be7 {[%clk 0:01:10.7]}
14. O-O {[%clk 0:01:53.9]} 14... Rd8 {[%clk 0:01:06.3]} 15. Qe4 {[%clk
0:01:20.2]} 15... Bxg5 {[%clk 0:00:57.6]} 16. hxg5 {[%clk 0:01:20.2]} 16... b5
{[%clk 0:00:33.4]} 17. Qc6+ {[%clk 0:01:14.3]} 17... Kf8 {[%clk 0:00:33.7]} 18.
g6 {[%clk 0:01:14.1]} 18... Ne7 {[%clk 0:00:32.5]} 19. Qxe6 {[%clk 0:00:51.4]}
19... fxe6 {[%clk 0:00:19.6]} 20. Nc4 {[%clk 0:00:52.4]} 20... Qd4 {[%clk
0:00:10.4]} 21. Nxd4 {[%clk 0:00:52.2]} 21... Rxd4 {[%clk 0:00:08]} 22. Rxd4
{[%clk 0:00:49.5]} 22... cxd4 {[%clk 0:00:09.9]} 23. Nd6 {[%clk 0:00:50.4]}
23... Nxg6 {[%clk 0:00:06.3]} 24. Nxb5 {[%clk 0:00:51.3]} 24... d3 {[%clk
0:00:06.7]} 25. f4 {[%clk 0:00:49.3]} 25... Ke7 {[%clk 0:00:06]} 26. g3 {[%clk
0:00:48.6]} 26... a6 {[%clk 0:00:04.5]} 27. Nd6 {[%clk 0:00:46.4]} 27... h4
{[%clk 0:00:02.5]} 28. Kg2 {[%clk 0:00:39.3]} 28... hxg3 {[%clk 0:00:02.1]} 29.
Kxg3 {[%clk 0:00:41.2]} 29... Rb8 {[%clk 0:00:03]} 30. Rd1 {[%clk 0:00:41.4]}
30... Rb4 {[%clk 0:00:04]} 31. Rxd3 {[%clk 0:00:41]} 31... Nxf4 {[%clk
0:00:05.2]} 32. Ra3 {[%clk 0:00:40.3]} 32... Ne2+ {[%clk 0:00:06.4]} 33. Kf2
{[%clk 0:00:40.4]} 33... Rb2 {[%clk 0:00:07.4]} 34. Rxa6 {[%clk 0:00:40.6]}
34... Nc3+ {[%clk 0:00:08.5]} 35. Kg3 {[%clk 0:00:40.3]} 35... Rxa2 {[%clk
0:00:09.3]} 36. Rc6 {[%clk 0:00:40.3]} 36... Nd5 {[%clk 0:00:09.8]} 37. Rc8
{[%clk 0:00:39.4]} 37... Re2 {[%clk 0:00:10.7]} 38. Rg8 {[%clk 0:00:36.3]} 38...
Rxe5 {[%clk 0:00:10.9]} 39. Nc4 {[%clk 0:00:33.4]} 39... Rg5+ {[%clk 0:00:11.9]}
40. Kh4 {[%clk 0:00:34.3]} 40... Rg4+ {[%clk 0:00:08.5]} 41. Kxg4 {[%clk
0:00:32.7]} 41... Nf6+ {[%clk 0:00:09.9]} 42. Kg5 {[%clk 0:00:33.6]} 42... Nxg8
{[%clk 0:00:11.8]} 43. Kg6 {[%clk 0:00:35]} 43... Kf8 {[%clk 0:00:13.2]} 44. Ne5
{[%clk 0:00:26.5]} 44... Ne7+ {[%clk 0:00:14.3]} 45. Kg5 {[%clk 0:00:26.9]}
45... Ke8 {[%clk 0:00:14.1]} 46. Kf4 {[%clk 0:00:21]} 46... Kf8 {[%clk
0:00:07.9]} 47. Nd7+ {[%clk 0:00:21.2]} 47... Kf7 {[%clk 0:00:08.5]} 48. Ke5
{[%clk 0:00:22.7]} 48... Ng6+ {[%clk 0:00:08.1]} 49. Kd6 {[%clk 0:00:24]} 49...
Nf4 {[%clk 0:00:08.6]} 50. Ne5+ {[%clk 0:00:24.5]} 50... Kf6 {[%clk 0:00:09.4]}
51. Nd7+ {[%clk 0:00:24.1]} 51... Kf5 {[%clk 0:00:10.4]} 52. Ne5 {[%clk
0:00:20]} 52... g5 {[%clk 0:00:11.1]} 53. Nf3 {[%clk 0:00:20.9]} 53... g4 {[%clk
0:00:12]} 54. Nd4+ {[%clk 0:00:20.4]} 54... Ke4 {[%clk 0:00:13.1]} 55. Nxe6
{[%clk 0:00:20.5]} 55... Nxe6 {[%clk 0:00:14.1]} 56. Kxe6 {[%clk 0:00:22.4]}
56... g3 {[%clk 0:00:15.7]} 0-1

[Event "*** Titled Tuesday Blitz"]
[Site "Chess.com"]
[Date "2018.07.03"]
[Round "5"]
[White "djamir"]
[Black "eljanov"]
[Result "0-1"]
[WhiteElo "2600"]
[BlackElo "2645"]
[TimeControl "180+2"]
[EndTime "14:05:03 PDT"]
[Termination "eljanov won by checkmate"]

1. e4 {[%clk 0:02:59.9]} 1... c6 {[%clk 0:03:00.5]} 2. d4 {[%clk 0:03:00]} 2...
d5 {[%clk 0:03:01]} 3. exd5 {[%clk 0:02:57.2]} 3... cxd5 {[%clk 0:03:01.7]} 4.
Bd3 {[%clk 0:02:58.1]} 4... Nc6 {[%clk 0:03:01]} 5. c3 {[%clk 0:02:57]} 5... Nf6
{[%clk 0:03:00.3]} 6. Ne2 {[%clk 0:02:57.6]} 6... Bg4 {[%clk 0:02:58.1]} 7. O-O
{[%clk 0:02:58.6]} 7... e6 {[%clk 0:02:58.1]} 8. Bf4 {[%clk 0:02:41.7]} 8... Bd6
{[%clk 0:02:56]} 9. Bxd6 {[%clk 0:02:41.8]} 9... Qxd6 {[%clk 0:02:56.9]} 10. Na3
{[%clk 0:02:42.9]} 10... O-O {[%clk 0:02:51.2]} 11. Nc2 {[%clk 0:02:43.7]} 11...
Bh5 {[%clk 0:02:33.8]} 12. Ne3 {[%clk 0:02:40.7]} 12... Rab8 {[%clk 0:02:27.3]}
13. a4 {[%clk 0:02:40.9]} 13... a6 {[%clk 0:02:24.6]} 14. Re1 {[%clk 0:02:37.2]}
14... Qc7 {[%clk 0:02:20]} 15. Qb1 {[%clk 0:02:24.1]} 15... Bg6 {[%clk 0:02:09]}
16. Bxg6 {[%clk 0:02:05.6]} 16... hxg6 {[%clk 0:02:10.9]} 17. Ng3 {[%clk
0:01:51.7]} 17... b5 {[%clk 0:02:06.6]} 18. axb5 {[%clk 0:01:52.1]} 18... axb5
{[%clk 0:02:07.5]} 19. b4 {[%clk 0:01:52.3]} 19... Ne7 {[%clk 0:02:01.2]} 20.
Qd3 {[%clk 0:01:47.3]} 20... Rfc8 {[%clk 0:01:54.3]} 21. Rec1 {[%clk 0:01:42.9]}
21... Nf5 {[%clk 0:01:48.6]} 22. Nexf5 {[%clk 0:01:26.7]} 22... gxf5 {[%clk
0:01:49.1]} 23. f3 {[%clk 0:01:27.8]} 23... Ne8 {[%clk 0:01:33.9]} 24. Nf1
{[%clk 0:01:26.9]} 24... Nd6 {[%clk 0:01:34.3]} 25. Nd2 {[%clk 0:01:26.9]} 25...
Ra8 {[%clk 0:01:33.9]} 26. Qb1 {[%clk 0:01:00]} 26... Nc4 {[%clk 0:01:04.5]} 27.
Nb3 {[%clk 0:00:58.9]} 27... Qf4 {[%clk 0:00:52.7]} 28. Qd3 {[%clk 0:00:54.3]}
28... Nb2 {[%clk 0:00:35.6]} 29. Qc2 {[%clk 0:00:25.3]} 29... Rxa1 {[%clk
0:00:30.5]} 30. Nxa1 {[%clk 0:00:19.8]} 30... Qe3+ {[%clk 0:00:31.4]} 31. Kf1
{[%clk 0:00:20.3]} 31... Na4 {[%clk 0:00:28.4]} 32. Qd1 {[%clk 0:00:06.3]} 32...
Rxc3 {[%clk 0:00:26.2]} 33. Nc2 {[%clk 0:00:05.8]} 33... Qd3+ {[%clk 0:00:17.5]}
34. Qxd3 {[%clk 0:00:06.6]} 34... Rxd3 {[%clk 0:00:19.1]} 35. Ke2 {[%clk
0:00:08.1]} 35... Rc3 {[%clk 0:00:20.2]} 36. Kd2 {[%clk 0:00:09.6]} 36... Rc4
{[%clk 0:00:21.5]} 37. Rb1 {[%clk 0:00:11]} 37... g5 {[%clk 0:00:21.7]} 38. Rb3
{[%clk 0:00:12.3]} 38... Kg7 {[%clk 0:00:21.5]} 39. Kd3 {[%clk 0:00:11.5]} 39...
Rc8 {[%clk 0:00:17.8]} 40. h3 {[%clk 0:00:08.5]} 40... Nb6 {[%clk 0:00:17.6]}
41. Rc3 {[%clk 0:00:08.9]} 41... Nc4 {[%clk 0:00:18.5]} 42. Na3 {[%clk
0:00:10.1]} 42... Rb8 {[%clk 0:00:19.8]} 43. Ke2 {[%clk 0:00:07.9]} 43... Kg6
{[%clk 0:00:20.9]} 44. g4 {[%clk 0:00:08.6]} 44... f4 {[%clk 0:00:21.5]} 45. Kf2
{[%clk 0:00:09.3]} 45... f6 {[%clk 0:00:22.2]} 46. Kg2 {[%clk 0:00:09.9]} 46...
e5 {[%clk 0:00:23.5]} 47. Rd3 {[%clk 0:00:09.8]} 47... e4 {[%clk 0:00:24.4]} 48.
Rb3 {[%clk 0:00:11.2]} 48... Kf7 {[%clk 0:00:23.4]} 49. Rc3 {[%clk 0:00:11.1]}
49... Ke6 {[%clk 0:00:23.1]} 50. Kf2 {[%clk 0:00:12.3]} 50... Kd6 {[%clk
0:00:23.1]} 51. h4 {[%clk 0:00:11]} 51... gxh4 {[%clk 0:00:23.6]} 52. Kg2 {[%clk
0:00:11.5]} 52... Kc6 {[%clk 0:00:24]} 53. Kh3 {[%clk 0:00:12.5]} 53... Ra8
{[%clk 0:00:25.3]} 54. Nc2 {[%clk 0:00:13.2]} 54... Kd6 {[%clk 0:00:25.6]} 55.
Kxh4 {[%clk 0:00:14.2]} 55... Rh8# {[%clk 0:00:26.2]} 0-1

[Event "*** Titled Tuesday Blitz"]
[Site "Chess.com"]
[Date "2018.07.03"]
[Round "5"]
[White "djano"]
[Black "arctic_t00"]
[Result "0-1"]
[WhiteElo "2401"]
[BlackElo "2336"]
[TimeControl "180+2"]
[EndTime "14:05:06 PDT"]
[Termination "arctic_t00 won on time"]

1. Nf3 {[%clk 0:03:01.9]} 1... Nf6 {[%clk 0:02:57.7]} 2. c4 {[%clk 0:03:01.3]}
2... g6 {[%clk 0:02:58.7]} 3. d4 {[%clk 0:03:00.5]} 3... Bg7 {[%clk 0:02:59.3]}
4. Nc3 {[%clk 0:03:01.2]} 4... O-O {[%clk 0:03:00.3]} 5. Bg5 {[%clk 0:02:59.8]}
5... d6 {[%clk 0:02:56.3]} 6. e3 {[%clk 0:02:59.8]} 6... c5 {[%clk 0:02:56.4]}
7. Be2 {[%clk 0:03:00.8]} 7... h6 {[%clk 0:02:52.8]} 8. Bh4 {[%clk 0:03:00.9]}
8... g5 {[%clk 0:02:53.4]} 9. Bg3 {[%clk 0:03:01.4]} 9... Nh5 {[%clk 0:02:54.4]}
10. d5 {[%clk 0:02:57.7]} 10... Nxg3 {[%clk 0:02:52.8]} 11. hxg3 {[%clk
0:02:58.1]} 11... f5 {[%clk 0:02:47.5]} 12. Qc2 {[%clk 0:02:56.1]} 12... e5
{[%clk 0:02:23.5]} 13. dxe6 {[%clk 0:02:55.6]} 13... Bxe6 {[%clk 0:02:24]} 14.
O-O {[%clk 0:02:50.5]} 14... Nc6 {[%clk 0:02:17.6]} 15. Rad1 {[%clk 0:02:48]}
15... Qe7 {[%clk 0:02:10.1]} 16. a3 {[%clk 0:02:43.9]} 16... Rad8 {[%clk
0:02:08.9]} 17. Nd5 {[%clk 0:02:44.5]} 17... Qf7 {[%clk 0:02:08.6]} 18. Rd2
{[%clk 0:02:33.6]} 18... Ne5 {[%clk 0:02:01.6]} 19. Rfd1 {[%clk 0:02:28.6]}
19... Ng6 {[%clk 0:01:38.5]} 20. Bd3 {[%clk 0:02:24.2]} 20... Ne7 {[%clk
0:01:32.2]} 21. e4 {[%clk 0:02:18.1]} 21... Nxd5 {[%clk 0:01:29.5]} 22. cxd5
{[%clk 0:02:16.3]} 22... Bc8 {[%clk 0:01:24.9]} 23. exf5 {[%clk 0:02:06]} 23...
Bxf5 {[%clk 0:01:14]} 24. Re2 {[%clk 0:01:49.7]} 24... Bg4 {[%clk 0:01:02.2]}
25. Be4 {[%clk 0:01:44.8]} 25... Qf6 {[%clk 0:01:00.3]} 26. b4 {[%clk
0:01:43.4]} 26... cxb4 {[%clk 0:00:57.3]} 27. axb4 {[%clk 0:01:45.3]} 27... Rc8
{[%clk 0:00:58.4]} 28. Qa4 {[%clk 0:01:43.5]} 28... a6 {[%clk 0:00:51.6]} 29. b5
{[%clk 0:01:44.6]} 29... axb5 {[%clk 0:00:49.6]} 30. Qxb5 {[%clk 0:01:46.5]}
30... Rc7 {[%clk 0:00:49]} 31. Qa4 {[%clk 0:01:42]} 31... Re7 {[%clk 0:00:49.3]}
32. Bh7+ {[%clk 0:01:35.7]} 32... Kxh7 {[%clk 0:00:50.1]} 33. Rxe7 {[%clk
0:01:36.3]} 33... Bxf3 {[%clk 0:00:43.3]} 34. Rxg7+ {[%clk 0:00:57.6]} 34...
Kxg7 {[%clk 0:00:43.4]} 35. gxf3 {[%clk 0:00:58]} 35... Qxf3 {[%clk 0:00:43.4]}
36. Qd4+ {[%clk 0:00:52.8]} 36... Qf6 {[%clk 0:00:40.9]} 37. Qb6 {[%clk
0:00:51.5]} 37... Rf7 {[%clk 0:00:38.9]} 38. Re1 {[%clk 0:00:51.7]} 38... Re7
{[%clk 0:00:34.5]} 39. Rc1 {[%clk 0:00:37.7]} 39... h5 {[%clk 0:00:33.2]} 40.
Rc7 {[%clk 0:00:32.5]} 40... Qf7 {[%clk 0:00:21.5]} 41. Qd4+ {[%clk 0:00:28.7]}
41... Kg6 {[%clk 0:00:19.5]} 42. Rc8 {[%clk 0:00:27.5]} 42... Qg7 {[%clk
0:00:13.2]} 43. Qd3+ {[%clk 0:00:24.3]} 43... Kh6 {[%clk 0:00:14.3]} 44. Kg2
{[%clk 0:00:15.6]} 44... Rf7 {[%clk 0:00:12.1]} 45. Qe4 {[%clk 0:00:15.1]} 45...
Qf6 {[%clk 0:00:12.2]} 46. Qe3 {[%clk 0:00:15.1]} 46... Re7 {[%clk 0:00:11.5]}
47. Qd3 {[%clk 0:00:14.1]} 47... Rf7 {[%clk 0:00:10.2]} 48. Qe3 {[%clk
0:00:13.3]} 48... Qf5 {[%clk 0:00:10.1]} 49. Qd4 {[%clk 0:00:12.8]} 49... Qf6
{[%clk 0:00:10.3]} 50. Qe3 {[%clk 0:00:13.2]} 50... Qf5 {[%clk 0:00:11.2]} 51.
Qd4 {[%clk 0:00:14.1]} 51... Qxc8 {[%clk 0:00:12.1]} 52. Qe4 {[%clk 0:00:12.9]}
52... Qf5 {[%clk 0:00:12]} 53. Qe3 {[%clk 0:00:12.2]} 53... Qxd5+ {[%clk
0:00:11.2]} 0-1

[Event "*** Titled Tuesday Blitz"]
[Site "Chess.com"]
[Date "2018.07.03"]
[Round "5"]
[White "Mbneu"]
[Black "Saitama_Hero"]
[Result "1-0"]
[WhiteElo "2250"]
[BlackElo "2329"]
[TimeControl "180+2"]
[EndTime "14:05:15 PDT"]
[Termination "Mbneu won by checkmate"]

1. d4 {[%clk 0:01:52.4]} 1... Nf6 {[%clk 0:02:55.5]} 2. c4 {[%clk 0:01:52.8]}
2... g6 {[%clk 0:02:56.8]} 3. Nc3 {[%clk 0:01:53.2]} 3... d5 {[%clk 0:02:58.3]}
4. cxd5 {[%clk 0:01:55.1]} 4... Nxd5 {[%clk 0:02:59.4]} 5. g3 {[%clk 0:01:56.6]}
5... Bg7 {[%clk 0:02:58.3]} 6. Bg2 {[%clk 0:01:58.2]} 6... Nb6 {[%clk
0:02:59.1]} 7. Nf3 {[%clk 0:01:58.1]} 7... O-O {[%clk 0:03:00.6]} 8. O-O {[%clk
0:01:58.6]} 8... Nc6 {[%clk 0:03:02]} 9. d5 {[%clk 0:01:59.9]} 9... Na5 {[%clk
0:03:00.3]} 10. Be3 {[%clk 0:02:00.8]} 10... Nac4 {[%clk 0:02:57.3]} 11. Bd4
{[%clk 0:02:01.5]} 11... Nxb2 {[%clk 0:02:57.5]} 12. Qc2 {[%clk 0:02:02.3]}
12... N2c4 {[%clk 0:02:58.1]} 13. Bxg7 {[%clk 0:02:02.9]} 13... Kxg7 {[%clk
0:02:58.5]} 14. Rfd1 {[%clk 0:01:57.5]} 14... Bf5 {[%clk 0:02:54.9]} 15. e4
{[%clk 0:01:57.6]} 15... Bg4 {[%clk 0:02:55.7]} 16. Nb5 {[%clk 0:01:53]} 16...
Bxf3 {[%clk 0:02:50.9]} 17. Bxf3 {[%clk 0:01:53.2]} 17... a6 {[%clk 0:02:27.1]}
18. Nd4 {[%clk 0:01:52.7]} 18... Qd6 {[%clk 0:02:28.2]} 19. Be2 {[%clk
0:01:46.5]} 19... Na3 {[%clk 0:02:16.5]} 20. Qc3 {[%clk 0:01:41.9]} 20... Kg8
{[%clk 0:02:13.4]} 21. Rac1 {[%clk 0:01:28.1]} 21... Nb5 {[%clk 0:01:47.7]} 22.
Bxb5 {[%clk 0:01:20.8]} 22... axb5 {[%clk 0:01:49.6]} 23. Nxb5 {[%clk
0:01:22.1]} 23... Qd7 {[%clk 0:01:49.5]} 24. Nxc7 {[%clk 0:01:18.7]} 24... Rfc8
{[%clk 0:01:01.4]} 25. Qb3 {[%clk 0:01:08.8]} 25... Rxc7 {[%clk 0:00:42.2]} 26.
Qxb6 {[%clk 0:01:08]} 26... Rxc1 {[%clk 0:00:42.2]} 27. Rxc1 {[%clk 0:01:09.4]}
27... Rxa2 {[%clk 0:00:41.1]} 28. Qc7 {[%clk 0:01:09.5]} 28... Qxc7 {[%clk
0:00:11.8]} 29. Rxc7 {[%clk 0:01:09.2]} 29... Kf8 {[%clk 0:00:13.3]} 30. Rxb7
{[%clk 0:01:07.8]} 30... Re2 {[%clk 0:00:14.8]} 31. Rb4 {[%clk 0:01:05.2]} 31...
Ke8 {[%clk 0:00:15.4]} 32. Kg2 {[%clk 0:01:04.5]} 32... Kd7 {[%clk 0:00:14.3]}
33. Kf3 {[%clk 0:01:05.5]} 33... Rc2 {[%clk 0:00:15.4]} 34. Ke3 {[%clk
0:01:00.8]} 34... h5 {[%clk 0:00:14.4]} 35. Rb3 {[%clk 0:00:59.9]} 35... Ra2
{[%clk 0:00:14.7]} 36. h4 {[%clk 0:00:59.7]} 36... Rc2 {[%clk 0:00:15.4]} 37. f3
{[%clk 0:01:00]} 37... Rg2 {[%clk 0:00:15.2]} 38. Kf4 {[%clk 0:01:00.7]} 38...
Rf2 {[%clk 0:00:14.3]} 39. Rb7+ {[%clk 0:01:00.9]} 39... Ke8 {[%clk 0:00:13.8]}
40. e5 {[%clk 0:01:01.1]} 40... Rd2 {[%clk 0:00:11.2]} 41. e6 {[%clk 0:00:57.8]}
41... fxe6 {[%clk 0:00:06.2]} 42. dxe6 {[%clk 0:00:58.2]} 42... Kf8 {[%clk
0:00:06.6]} 43. Kg5 {[%clk 0:00:57.4]} 43... Rd6 {[%clk 0:00:07.7]} 44. Kxg6
{[%clk 0:00:56.5]} 44... Rxe6+ {[%clk 0:00:09]} 45. Kxh5 {[%clk 0:00:57.6]}
45... Re3 {[%clk 0:00:08.7]} 46. Kg4 {[%clk 0:00:58.1]} 46... Kf7 {[%clk
0:00:09.3]} 47. Rb4 {[%clk 0:00:57.9]} 47... Re6 {[%clk 0:00:10.3]} 48. Rf4+
{[%clk 0:00:58]} 48... Kg7 {[%clk 0:00:09.7]} 49. Rf5 {[%clk 0:00:59.3]} 49...
Kh7 {[%clk 0:00:06.1]} 50. Kf4 {[%clk 0:01:00.1]} 50... Kg7 {[%clk 0:00:07.3]}
51. Re5 {[%clk 0:01:00.7]} 51... Rb6 {[%clk 0:00:03.1]} 52. Rxe7+ {[%clk
0:01:01.2]} 52... Kf6 {[%clk 0:00:04.4]} 53. Re4 {[%clk 0:01:02.1]} 53... Rb5
{[%clk 0:00:05.3]} 54. Kg4 {[%clk 0:01:02.8]} 54... Rc5 {[%clk 0:00:05.8]} 55.
f4 {[%clk 0:01:03.6]} 55... Kg6 {[%clk 0:00:06.5]} 56. Re6+ {[%clk 0:01:03.6]}
56... Kf7 {[%clk 0:00:05.3]} 57. f5 {[%clk 0:01:04.7]} 57... Rc4+ {[%clk
0:00:05.4]} 58. Kg5 {[%clk 0:01:05.8]} 58... Rc3 {[%clk 0:00:05.6]} 59. g4
{[%clk 0:01:07]} 59... Rc8 {[%clk 0:00:05]} 60. h5 {[%clk 0:01:07.2]} 60... Rg8+
{[%clk 0:00:06.5]} 61. Rg6 {[%clk 0:01:07.1]} 61... Rd8 {[%clk 0:00:06.4]} 62.
h6 {[%clk 0:01:08.3]} 62... Rd4 {[%clk 0:00:04.1]} 63. h7 {[%clk 0:01:08.3]}
63... Rd8 {[%clk 0:00:02.1]} 64. Rg8 {[%clk 0:01:08.6]} 64... Rxg8+ {[%clk
0:00:02.4]} 65. hxg8=Q+ {[%clk 0:01:09.7]} 65... Kxg8 {[%clk 0:00:04.3]} 66. Kf6
{[%clk 0:01:11.3]} 66... Kf8 {[%clk 0:00:06.2]} 67. g5 {[%clk 0:01:12.5]} 67...
Kg8 {[%clk 0:00:08.1]} 68. Ke7 {[%clk 0:01:13.2]} 68... Kg7 {[%clk 0:00:09.8]}
69. f6+ {[%clk 0:01:14]} 69... Kg6 {[%clk 0:00:11.7]} 70. f7 {[%clk 0:01:15.6]}
70... Kxg5 {[%clk 0:00:13.1]} 71. f8=Q {[%clk 0:01:16.7]} 71... Kh5 {[%clk
0:00:15]} 72. Qg7 {[%clk 0:01:15]} 72... Kh4 {[%clk 0:00:16.9]} 73. Kf6 {[%clk
0:01:16.3]} 73... Kh3 {[%clk 0:00:17.8]} 74. Kf5 {[%clk 0:01:17.7]} 74... Kh2
{[%clk 0:00:19.2]} 75. Kf4 {[%clk 0:01:19.2]} 75... Kh1 {[%clk 0:00:20.7]} 76.
Kf3 {[%clk 0:01:20.2]} 76... Kh2 {[%clk 0:00:22.6]} 77. Qg2# {[%clk 0:01:21]}
1-0